[Event "Titled Tuesday Blitz April 11 Late 2023"]
[White "Colas, Joshua"]
[Black "Hartikainen, Jarmo"]
[WhiteFideId "2044447"]
[BlackFideId "503134"]
[WhiteElo "2347"]
[BlackElo "2108"]
[Result "1-0"]
[Round "02"]
[TimeControl "180+2"]
[Date "2023.04.11"]
[WhiteClock "0:01:18"]
[BlackClock "0:00:03"]

1. Nf3 {[%clk 0:02:44]}  Nf6 {[%clk 0:02:58]} 2. c4 {[%clk 0:02:44]}  c5 {[%clk 0:02:58]} 3. b3 {[%clk 0:02:44]}  g6 {[%clk 0:02:57]} 4. Bb2 {[%clk 0:02:45]}  Bg7 {[%clk 0:02:58]} 5. g3 {[%clk 0:02:45]}  O-O {[%clk 0:02:58]} 6. Bg2 {[%clk 0:02:46]}  Nc6 {[%clk 0:02:53]} 7. O-O {[%clk 0:02:40]}  d6 {[%clk 0:02:53]} 8. d4 {[%clk 0:02:29]}  Ng4 {[%clk 0:02:08]} 9. Qd2 {[%clk 0:02:23]}  cxd4 {[%clk 0:02:02]} 10. Nxd4 {[%clk 0:02:24]}  Nxd4 {[%clk 0:01:55]} 11. Bxd4 {[%clk 0:02:22]}  Ne5 {[%clk 0:01:51]} 12. Nc3 {[%clk 0:02:18]}  a6 {[%clk 0:01:34]} 13. Nd5 {[%clk 0:02:14]}  Nd7 {[%clk 0:01:17]} 14. Bxg7 {[%clk 0:02:09]}  Kxg7 {[%clk 0:01:17]} 15. Qd4+ {[%clk 0:02:08]}  f6 {[%clk 0:01:10]} 16. f4 {[%clk 0:02:02]}  e5 {[%clk 0:00:50]} 17. fxe5 {[%clk 0:01:52]}  dxe5 {[%clk 0:00:45]} 18. Qb2 {[%clk 0:01:53]}  Nb6 {[%clk 0:00:37]} 19. Rad1 {[%clk 0:01:42]}  Nxd5 {[%clk 0:00:37]} 20. Rxd5 {[%clk 0:01:39]}  Qb6+ {[%clk 0:00:36]} 21. c5 {[%clk 0:01:38]}  Qb5 {[%clk 0:00:36]} 22. Rxe5 {[%clk 0:01:32]}  Bg4 {[%clk 0:00:13]} 23. Re7+ {[%clk 0:01:30]}  Kh8 {[%clk 0:00:09]} 24. Rxf6 {[%clk 0:01:27]}  Qxc5+ {[%clk 0:00:09]} 25. Rf2+ {[%clk 0:01:18]}  Kg8 {[%clk 0:00:03]} 26. Qg7# {[%clk 0:01:18]} 1-0


[Site "https://www.chess.com"]

[Event "Titled Tuesday Blitz April 11 Late 2023"]
[White "Torres Dominguez, David"]
[Black "De La Colina, Nicolas"]
[WhiteFideId "2220857"]
[BlackFideId "30946921"]
[WhiteElo "1999"]
[BlackElo "2046"]
[Result "1/2-1/2"]
[Round "02"]
[TimeControl "180+2"]
[Date "2023.04.11"]
[WhiteClock "0:01:18"]
[BlackClock "0:00:09"]

1. e4 {[%clk 0:02:59]}  c5 {[%clk 0:02:59]} 2. Nc3 {[%clk 0:02:57]}  Nc6 {[%clk 0:03:00]} 3. Bb5 {[%clk 0:02:58]}  Nd4 {[%clk 0:03:00]} 4. Bc4 {[%clk 0:02:58]}  e6 {[%clk 0:03:00]} 5. Nge2 {[%clk 0:02:59]}  Nf6 {[%clk 0:02:58]} 6. O-O {[%clk 0:02:59]}  a6 {[%clk 0:02:57]} 7. Bb3 {[%clk 0:02:57]}  Nxb3 {[%clk 0:02:55]} 8. axb3 {[%clk 0:02:56]}  d6 {[%clk 0:02:54]} 9. d3 {[%clk 0:02:57]}  b6 {[%clk 0:02:52]} 10. f4 {[%clk 0:02:55]}  Bb7 {[%clk 0:02:52]} 11. Ng3 {[%clk 0:02:55]}  Be7 {[%clk 0:02:47]} 12. f5 {[%clk 0:02:54]}  Qc7 {[%clk 0:02:38]} 13. fxe6 {[%clk 0:02:29]}  fxe6 {[%clk 0:02:39]} 14. Nh5 {[%clk 0:02:29]}  O-O {[%clk 0:02:11]} 15. Nxf6+ {[%clk 0:02:23]}  Bxf6 {[%clk 0:02:12]} 16. Bf4 {[%clk 0:02:22]}  b5 {[%clk 0:02:06]} 17. Qg4 {[%clk 0:02:20]}  Qe7 {[%clk 0:01:58]} 18. Qg3 {[%clk 0:02:18]}  Bd4+ {[%clk 0:01:49]} 19. Kh1 {[%clk 0:02:17]}  Rad8 {[%clk 0:01:47]} 20. Bg5 {[%clk 0:02:16]}  Bf6 {[%clk 0:01:47]} 21. Bxf6 {[%clk 0:02:16]}  Rxf6 {[%clk 0:01:48]} 22. Rxf6 {[%clk 0:02:05]}  Qxf6 {[%clk 0:01:49]} 23. Qf3 {[%clk 0:02:00]}  Qe7 {[%clk 0:01:36]} 24. Rf1 {[%clk 0:01:59]}  b4 {[%clk 0:01:31]} 25. Ne2 {[%clk 0:01:57]}  Rf8 {[%clk 0:01:11]} 26. Qxf8+ {[%clk 0:01:57]}  Qxf8 {[%clk 0:01:12]} 27. Rxf8+ {[%clk 0:01:57]}  Kxf8 {[%clk 0:01:13]} 28. Kg1 {[%clk 0:01:57]}  Ke7 {[%clk 0:01:05]} 29. Kf2 {[%clk 0:01:58]}  a5 {[%clk 0:01:00]} 30. Ke3 {[%clk 0:01:58]}  Ba6 {[%clk 0:00:58]} 31. g3 {[%clk 0:01:56]}  Bb5 {[%clk 0:00:58]} 32. Ng1 {[%clk 0:01:47]}  a4 {[%clk 0:00:54]} 33. bxa4 {[%clk 0:01:46]}  Bxa4 {[%clk 0:00:55]} 34. c3 {[%clk 0:01:45]}  bxc3 {[%clk 0:00:51]} 35. bxc3 {[%clk 0:01:46]}  Bd1 {[%clk 0:00:48]} 36. Nh3 {[%clk 0:01:44]}  h6 {[%clk 0:00:47]} 37. d4 {[%clk 0:01:44]}  cxd4+ {[%clk 0:00:46]} 38. cxd4 {[%clk 0:01:45]}  Ba4 {[%clk 0:00:43]} 39. e5 {[%clk 0:01:44]}  dxe5 {[%clk 0:00:38]} 40. dxe5 {[%clk 0:01:45]}  Bc6 {[%clk 0:00:30]} 41. Nf2 {[%clk 0:01:44]}  Bd5 {[%clk 0:00:28]} 42. h4 {[%clk 0:01:43]}  Kf7 {[%clk 0:00:24]} 43. Nd3 {[%clk 0:01:41]}  Ke7 {[%clk 0:00:22]} 44. Nf4 {[%clk 0:01:40]}  Bc6 {[%clk 0:00:21]} 45. Ne2 {[%clk 0:01:39]}  Bd5 {[%clk 0:00:21]} 46. Nf4 {[%clk 0:01:39]}  Bc6 {[%clk 0:00:21]} 47. Nh3 {[%clk 0:01:38]}  Kf7 {[%clk 0:00:21]} 48. Kf4 {[%clk 0:01:37]}  Bd5 {[%clk 0:00:20]} 49. Nf2 {[%clk 0:01:37]}  Kg6 {[%clk 0:00:19]} 50. Nd1 {[%clk 0:01:37]}  Kh5 {[%clk 0:00:17]} 51. Ne3 {[%clk 0:01:37]}  Ba2 {[%clk 0:00:17]} 52. Nc2 {[%clk 0:01:35]}  g5+ {[%clk 0:00:16]} 53. hxg5 {[%clk 0:01:35]}  hxg5+ {[%clk 0:00:17]} 54. Kf3 {[%clk 0:01:35]}  Bd5+ {[%clk 0:00:17]} 55. Kf2 {[%clk 0:01:35]}  Kg4 {[%clk 0:00:18]} 56. Nd4 {[%clk 0:01:34]}  Kh3 {[%clk 0:00:17]} 57. Nf3 {[%clk 0:01:27]}  Kg4 {[%clk 0:00:17]} 58. Nd4 {[%clk 0:01:27]}  Kh3 {[%clk 0:00:16]} 59. Ne2 {[%clk 0:01:24]}  Kh2 {[%clk 0:00:12]} 60. Nd4 {[%clk 0:01:18]}  Kh3 {[%clk 0:00:09]} 1/2-1/2


[Site "https://www.chess.com"]

[Event "Titled Tuesday Blitz April 11 Late 2023"]
[White "Lobanov, Sergei"]
[Black "Bouget, Alexandre"]
[WhiteFideId "24183750"]
[BlackFideId "681318"]
[WhiteElo "2489"]
[BlackElo "2182"]
[Result "1-0"]
[Round "02"]
[TimeControl "180+2"]
[Date "2023.04.11"]
[WhiteClock "0:00:06"]
[BlackClock "0:00:02"]

1. d4 {[%clk 0:03:00]}  Nf6 {[%clk 0:02:51]} 2. c4 {[%clk 0:03:00]}  g6 {[%clk 0:02:51]} 3. Nc3 {[%clk 0:03:00]}  d5 {[%clk 0:02:52]} 4. cxd5 {[%clk 0:03:00]}  Nxd5 {[%clk 0:02:53]} 5. Bd2 {[%clk 0:03:01]}  Bg7 {[%clk 0:02:52]} 6. e4 {[%clk 0:03:01]}  Nxc3 {[%clk 0:02:52]} 7. Bxc3 {[%clk 0:03:02]}  c5 {[%clk 0:02:53]} 8. d5 {[%clk 0:02:58]}  Bxc3+ {[%clk 0:02:53]} 9. bxc3 {[%clk 0:02:59]}  O-O {[%clk 0:02:54]} 10. Qd2 {[%clk 0:02:53]}  e6 {[%clk 0:02:54]} 11. c4 {[%clk 0:02:51]}  exd5 {[%clk 0:02:42]} 12. cxd5 {[%clk 0:02:50]}  Re8 {[%clk 0:02:28]} 13. f3 {[%clk 0:02:47]}  Qd6 {[%clk 0:02:10]} 14. Kf2 {[%clk 0:02:23]}  c4 {[%clk 0:02:02]} 15. Ne2 {[%clk 0:02:09]}  Nd7 {[%clk 0:01:56]} 16. Nc3 {[%clk 0:01:57]}  Ne5 {[%clk 0:01:50]} 17. Be2 {[%clk 0:01:56]}  Bd7 {[%clk 0:00:58]} 18. f4 {[%clk 0:01:53]}  Ng4+ {[%clk 0:00:47]} 19. Bxg4 {[%clk 0:01:51]}  Bxg4 {[%clk 0:00:48]} 20. Kg3 {[%clk 0:01:38]}  Bd7 {[%clk 0:00:47]} 21. e5 {[%clk 0:01:32]}  Qc5 {[%clk 0:00:46]} 22. Ne4 {[%clk 0:01:27]}  Qa3+ {[%clk 0:00:45]} 23. Kh4 {[%clk 0:01:27]}  Kg7 {[%clk 0:00:36]} 24. Qd4 {[%clk 0:01:25]}  Qd3 {[%clk 0:00:33]} 25. Qxd3 {[%clk 0:00:53]}  cxd3 {[%clk 0:00:34]} 26. Rab1 {[%clk 0:00:52]}  b6 {[%clk 0:00:33]} 27. Rhd1 {[%clk 0:00:50]}  Red8 {[%clk 0:00:33]} 28. Nd6 {[%clk 0:00:48]}  Ba4 {[%clk 0:00:28]} 29. Rd2 {[%clk 0:00:40]}  Bc2 {[%clk 0:00:28]} 30. Rb4 {[%clk 0:00:40]}  Rxd6 {[%clk 0:00:28]} 31. exd6 {[%clk 0:00:40]}  Rd8 {[%clk 0:00:28]} 32. Rd4 {[%clk 0:00:35]}  Rxd6 {[%clk 0:00:28]} 33. g4 {[%clk 0:00:33]}  Kf6 {[%clk 0:00:25]} 34. Kg3 {[%clk 0:00:32]}  a5 {[%clk 0:00:21]} 35. a4 {[%clk 0:00:27]}  h6 {[%clk 0:00:17]} 36. h4 {[%clk 0:00:27]}  Kg7 {[%clk 0:00:10]} 37. g5 {[%clk 0:00:25]}  h5 {[%clk 0:00:07]} 38. f5 {[%clk 0:00:22]}  Kf8 {[%clk 0:00:06]} 39. f6 {[%clk 0:00:21]}  Ke8 {[%clk 0:00:06]} 40. Kf4 {[%clk 0:00:20]}  Kd7 {[%clk 0:00:06]} 41. Ke5 {[%clk 0:00:20]}  Kc7 {[%clk 0:00:05]} 42. Rc4+ {[%clk 0:00:20]}  Kd7 {[%clk 0:00:05]} 43. Rf2 {[%clk 0:00:11]}  Bb3 {[%clk 0:00:05]} 44. Rd4 {[%clk 0:00:10]}  Bc2 {[%clk 0:00:04]} 45. Rd2 {[%clk 0:00:10]}  Bb1 {[%clk 0:00:03]} 46. R4xd3 {[%clk 0:00:07]}  Bxd3 {[%clk 0:00:04]} 47. Rxd3 {[%clk 0:00:08]}  b5 {[%clk 0:00:03]} 48. axb5 {[%clk 0:00:08]}  Rb6 {[%clk 0:00:04]} 49. Rb3 {[%clk 0:00:07]}  a4 {[%clk 0:00:04]} 50. Rb4 {[%clk 0:00:06]}  a3 {[%clk 0:00:04]} 51. Ra4 {[%clk 0:00:04]}  Rxb5 {[%clk 0:00:04]} 52. Ra7+ {[%clk 0:00:04]}  Ke8 {[%clk 0:00:04]} 53. Rxa3 {[%clk 0:00:05]}  Rb6 {[%clk 0:00:03]} 54. Ra8+ {[%clk 0:00:05]}  Kd7 {[%clk 0:00:03]} 55. Rf8 {[%clk 0:00:06]}  Rb4 {[%clk 0:00:02]} 56. Rxf7+ {[%clk 0:00:07]}  Ke8 {[%clk 0:00:02]} 57. Rg7 {[%clk 0:00:07]}  Rxh4 {[%clk 0:00:02]} 58. d6 {[%clk 0:00:07]}  Rg4 {[%clk 0:00:03]} 59. Ke6 {[%clk 0:00:05]}  Re4+ {[%clk 0:00:02]} 60. Kd5 {[%clk 0:00:06]}  Re1 {[%clk 0:00:02]} 61. Rxg6 {[%clk 0:00:06]} 1-0


[Site "https://www.chess.com"]

[Event "Titled Tuesday Blitz April 11 Late 2023"]
[White "Garcia Cuenca, Victor"]
[Black "Milikow, Yoav"]
[WhiteFideId "2250829"]
[BlackFideId "2822237"]
[WhiteElo "2329"]
[BlackElo "2410"]
[Result "0-1"]
[Round "02"]
[TimeControl "180+2"]
[Date "2023.04.11"]
[WhiteClock "0:00:32"]
[BlackClock "0:00:34"]

1. d4 {[%clk 0:03:00]}  d5 {[%clk 0:02:54]} 2. e3 {[%clk 0:02:58]}  Nf6 {[%clk 0:02:45]} 3. Nf3 {[%clk 0:02:56]}  Bg4 {[%clk 0:02:39]} 4. Be2 {[%clk 0:02:55]}  e6 {[%clk 0:02:37]} 5. O-O {[%clk 0:02:56]}  Nbd7 {[%clk 0:02:36]} 6. Nbd2 {[%clk 0:02:56]}  Bd6 {[%clk 0:02:35]} 7. b3 {[%clk 0:02:56]}  c6 {[%clk 0:02:34]} 8. Bb2 {[%clk 0:02:55]}  Qe7 {[%clk 0:02:32]} 9. c4 {[%clk 0:02:55]}  O-O {[%clk 0:02:30]} 10. Rc1 {[%clk 0:02:53]}  Ba3 {[%clk 0:02:28]} 11. Bxa3 {[%clk 0:02:46]}  Qxa3 {[%clk 0:02:29]} 12. Qc2 {[%clk 0:02:44]}  Bf5 {[%clk 0:02:29]} 13. Qc3 {[%clk 0:02:43]}  a5 {[%clk 0:02:23]} 14. Nh4 {[%clk 0:02:36]}  Be4 {[%clk 0:02:14]} 15. f3 {[%clk 0:02:33]}  Bg6 {[%clk 0:02:10]} 16. Nxg6 {[%clk 0:02:33]}  hxg6 {[%clk 0:02:11]} 17. e4 {[%clk 0:02:29]}  dxe4 {[%clk 0:02:05]} 18. fxe4 {[%clk 0:02:30]}  e5 {[%clk 0:02:04]} 19. dxe5 {[%clk 0:02:22]}  Qc5+ {[%clk 0:02:03]} 20. Kh1 {[%clk 0:02:20]}  Nxe5 {[%clk 0:01:58]} 21. Nf3 {[%clk 0:02:12]}  Rfe8 {[%clk 0:01:51]} 22. Nxe5 {[%clk 0:02:07]}  Qxe5 {[%clk 0:01:45]} 23. Bf3 {[%clk 0:02:08]}  Qxc3 {[%clk 0:01:42]} 24. Rxc3 {[%clk 0:02:09]}  Nxe4 {[%clk 0:01:33]} 25. Rc2 {[%clk 0:02:09]}  Nc5 {[%clk 0:01:30]} 26. g3 {[%clk 0:02:05]}  Re7 {[%clk 0:01:30]} 27. Kg2 {[%clk 0:02:04]}  Rd8 {[%clk 0:01:29]} 28. Rff2 {[%clk 0:01:17]}  Nd3 {[%clk 0:01:27]} 29. Rfe2 {[%clk 0:01:18]}  Ne1+ {[%clk 0:01:22]} 30. Kf2 {[%clk 0:01:18]}  Nd3+ {[%clk 0:01:19]} 31. Kf1 {[%clk 0:01:16]}  Red7 {[%clk 0:01:13]} 32. Rcd2 {[%clk 0:01:10]}  Kf8 {[%clk 0:01:11]} 33. Bg4 {[%clk 0:01:05]}  Rd4 {[%clk 0:01:07]} 34. Bh3 {[%clk 0:00:59]}  a4 {[%clk 0:00:42]} 35. Re3 {[%clk 0:00:51]}  a3 {[%clk 0:00:39]} 36. Bg2 {[%clk 0:00:37]}  Nb4 {[%clk 0:00:35]} 37. Rxd4 {[%clk 0:00:35]}  Rxd4 {[%clk 0:00:36]} 38. Re2 {[%clk 0:00:32]}  Rd1+ {[%clk 0:00:36]} 39. Kf2 {[%clk 0:00:32]}  Ra1 {[%clk 0:00:34]} 0-1


[Site "https://www.chess.com"]

[Event "Titled Tuesday Blitz April 11 Late 2023"]
[White "Levitskiy, Andrey"]
[Black "Gurevich, Dmitry"]
[WhiteFideId "14132885"]
[BlackFideId "2000407"]
[WhiteElo "2341"]
[BlackElo "2506"]
[Result "1-0"]
[Round "02"]
[TimeControl "180+2"]
[Date "2023.04.11"]
[WhiteClock "0:00:06"]
[BlackClock "0:00:02"]

1. e4 {[%clk 0:03:00]}  c5 {[%clk 0:02:59]} 2. Nf3 {[%clk 0:03:01]}  d6 {[%clk 0:02:59]} 3. d4 {[%clk 0:03:01]}  cxd4 {[%clk 0:02:59]} 4. Nxd4 {[%clk 0:03:02]}  Nf6 {[%clk 0:02:59]} 5. Nc3 {[%clk 0:03:02]}  Nc6 {[%clk 0:02:59]} 6. Bc4 {[%clk 0:03:02]}  e6 {[%clk 0:02:59]} 7. Be3 {[%clk 0:03:01]}  a6 {[%clk 0:02:59]} 8. Bb3 {[%clk 0:03:02]}  Be7 {[%clk 0:02:59]} 9. Qe2 {[%clk 0:02:54]}  Qc7 {[%clk 0:02:59]} 10. O-O-O {[%clk 0:02:54]}  Na5 {[%clk 0:02:59]} 11. g4 {[%clk 0:02:41]}  b5 {[%clk 0:02:58]} 12. g5 {[%clk 0:02:42]}  Nxb3+ {[%clk 0:02:58]} 13. Nxb3 {[%clk 0:02:39]}  Nd7 {[%clk 0:02:55]} 14. a3 {[%clk 0:01:39]}  Bb7 {[%clk 0:02:54]} 15. h4 {[%clk 0:01:34]}  Nc5 {[%clk 0:02:52]} 16. Bd4 {[%clk 0:01:21]}  Nxb3+ {[%clk 0:02:45]} 17. cxb3 {[%clk 0:01:22]}  e5 {[%clk 0:02:43]} 18. Be3 {[%clk 0:01:21]}  Bxe4 {[%clk 0:02:42]} 19. Rhe1 {[%clk 0:01:12]}  O-O {[%clk 0:02:39]} 20. Bb6 {[%clk 0:01:08]}  Qxb6 {[%clk 0:02:35]} 21. Qxe4 {[%clk 0:01:08]}  Qxf2 {[%clk 0:02:31]} 22. Nd5 {[%clk 0:00:56]}  Bd8 {[%clk 0:02:27]} 23. Rf1 {[%clk 0:00:51]}  Qc5+ {[%clk 0:02:21]} 24. Kb1 {[%clk 0:00:51]}  Rb8 {[%clk 0:02:13]} 25. Rg1 {[%clk 0:00:21]}  f5 {[%clk 0:01:45]} 26. gxf6 {[%clk 0:00:20]}  Bxf6 {[%clk 0:01:45]} 27. h5 {[%clk 0:00:18]}  Kh8 {[%clk 0:01:41]} 28. Qg4 {[%clk 0:00:12]}  Rb7 {[%clk 0:01:36]} 29. Qe6 {[%clk 0:00:08]}  Qc8 {[%clk 0:01:27]} 30. Qxd6 {[%clk 0:00:07]}  Qf5+ {[%clk 0:01:21]} 31. Ka2 {[%clk 0:00:06]}  Rd8 {[%clk 0:01:12]} 32. Qc6 {[%clk 0:00:06]}  Rbb8 {[%clk 0:01:09]} 33. h6 {[%clk 0:00:04]}  Rbc8 {[%clk 0:01:03]} 34. hxg7+ {[%clk 0:00:05]}  Bxg7 {[%clk 0:01:01]} 35. Qb7 {[%clk 0:00:06]}  Qd7 {[%clk 0:00:58]} 36. Qxa6 {[%clk 0:00:04]}  Qf7 {[%clk 0:00:56]} 37. Nb4 {[%clk 0:00:03]}  e4 {[%clk 0:00:51]} 38. Rde1 {[%clk 0:00:03]}  e3 {[%clk 0:00:38]} 39. Re2 {[%clk 0:00:02]}  Rc7 {[%clk 0:00:31]} 40. Qxb5 {[%clk 0:00:03]}  Rcd7 {[%clk 0:00:24]} 41. Qg5 {[%clk 0:00:03]}  Bd4 {[%clk 0:00:17]} 42. Rge1 {[%clk 0:00:02]}  Qf6 {[%clk 0:00:13]} 43. Qg4 {[%clk 0:00:02]}  Be5 {[%clk 0:00:11]} 44. Qe4 {[%clk 0:00:02]}  Rd2 {[%clk 0:00:10]} 45. Qxe3 {[%clk 0:00:02]}  Rxb2+ {[%clk 0:00:08]} 46. Rxb2 {[%clk 0:00:02]}  Bxb2 {[%clk 0:00:08]} 47. Re2 {[%clk 0:00:03]}  Bc3 {[%clk 0:00:07]} 48. Nc2 {[%clk 0:00:03]}  Rb8 {[%clk 0:00:04]} 49. Rf2 {[%clk 0:00:02]}  Qb6 {[%clk 0:00:03]} 50. Qxb6 {[%clk 0:00:02]}  Rxb6 {[%clk 0:00:04]} 51. b4 {[%clk 0:00:02]}  Be5 {[%clk 0:00:03]} 52. Kb3 {[%clk 0:00:03]}  Rf6 {[%clk 0:00:03]} 53. Re2 {[%clk 0:00:03]}  Rf5 {[%clk 0:00:02]} 54. a4 {[%clk 0:00:04]}  Rg5 {[%clk 0:00:02]} 55. Ne3 {[%clk 0:00:04]}  Rg3 {[%clk 0:00:03]} 56. Kc4 {[%clk 0:00:05]}  Bf4 {[%clk 0:00:03]} 57. Nd5 {[%clk 0:00:05]}  Bd6 {[%clk 0:00:02]} 58. a5 {[%clk 0:00:06]} 1-0


[Site "https://www.chess.com"]

[Event "Titled Tuesday Blitz April 11 Late 2023"]
[White "Torrente, Alejandro Josue"]
[Black "Kravtsiv, Martyn"]
[WhiteFideId "4437969"]
[BlackFideId "14113147"]
[WhiteElo "2025"]
[BlackElo "2695"]
[Result "0-1"]
[Round "02"]
[TimeControl "180+2"]
[Date "2023.04.11"]
[WhiteClock "0:00:57"]
[BlackClock "0:00:28"]

1. e4 {[%clk 0:03:00]}  g6 {[%clk 0:03:00]} 2. Nf3 {[%clk 0:03:01]}  Bg7 {[%clk 0:03:01]} 3. d4 {[%clk 0:03:01]}  c6 {[%clk 0:03:01]} 4. Nc3 {[%clk 0:03:00]}  d5 {[%clk 0:03:01]} 5. e5 {[%clk 0:03:01]}  Bg4 {[%clk 0:02:56]} 6. h3 {[%clk 0:03:01]}  Bxf3 {[%clk 0:02:55]} 7. Qxf3 {[%clk 0:03:02]}  e6 {[%clk 0:02:54]} 8. Bd3 {[%clk 0:03:00]}  Nd7 {[%clk 0:02:53]} 9. Ne2 {[%clk 0:03:00]}  Ne7 {[%clk 0:02:44]} 10. c3 {[%clk 0:03:00]}  Qc7 {[%clk 0:02:41]} 11. Bg5 {[%clk 0:03:00]}  h6 {[%clk 0:02:40]} 12. Bxe7 {[%clk 0:02:59]}  Kxe7 {[%clk 0:02:41]} 13. O-O {[%clk 0:02:55]}  Raf8 {[%clk 0:02:37]} 14. Qg4 {[%clk 0:02:52]}  Kd8 {[%clk 0:02:34]} 15. b4 {[%clk 0:02:51]}  Kc8 {[%clk 0:02:33]} 16. a4 {[%clk 0:02:50]}  Kb8 {[%clk 0:02:33]} 17. b5 {[%clk 0:02:47]}  c5 {[%clk 0:02:32]} 18. a5 {[%clk 0:02:46]}  Qd8 {[%clk 0:02:31]} 19. dxc5 {[%clk 0:02:41]}  Nxc5 {[%clk 0:02:27]} 20. Bc2 {[%clk 0:02:39]}  Bxe5 {[%clk 0:02:26]} 21. Nd4 {[%clk 0:02:36]}  Qg5 {[%clk 0:02:21]} 22. Qe2 {[%clk 0:02:34]}  Qf6 {[%clk 0:02:05]} 23. a6 {[%clk 0:02:15]}  Bxd4 {[%clk 0:02:02]} 24. cxd4 {[%clk 0:02:15]}  Qxd4 {[%clk 0:02:02]} 25. axb7 {[%clk 0:02:16]}  Nxb7 {[%clk 0:02:01]} 26. b6 {[%clk 0:02:11]}  axb6 {[%clk 0:02:00]} 27. Qa6 {[%clk 0:02:10]}  Kc7 {[%clk 0:01:53]} 28. Rfc1 {[%clk 0:02:09]}  Ra8 {[%clk 0:01:52]} 29. Ba4+ {[%clk 0:02:05]}  Nc5 {[%clk 0:01:52]} 30. Qb5 {[%clk 0:02:03]}  Kd6 {[%clk 0:01:00]} 31. Qxb6+ {[%clk 0:01:59]}  Ke5 {[%clk 0:01:01]} 32. Qc7+ {[%clk 0:01:28]}  Kf6 {[%clk 0:00:53]} 33. Qxc5 {[%clk 0:01:24]}  Rxa4 {[%clk 0:00:51]} 34. Rxa4 {[%clk 0:01:17]}  Qxa4 {[%clk 0:00:52]} 35. Qc3+ {[%clk 0:01:07]}  d4 {[%clk 0:00:51]} 36. Qf3+ {[%clk 0:01:05]}  Kg7 {[%clk 0:00:49]} 37. Rc7 {[%clk 0:01:05]}  Rf8 {[%clk 0:00:49]} 38. Qf4 {[%clk 0:01:02]}  Kg8 {[%clk 0:00:30]} 39. Rd7 {[%clk 0:00:57]}  Qxd7 {[%clk 0:00:28]} 0-1


[Site "https://www.chess.com"]

[Event "Titled Tuesday Blitz April 11 Late 2023"]
[White "Dzierzak, Radoslaw"]
[Black "Gorshtein, Ido"]
[WhiteFideId "1161407"]
[BlackFideId "2815532"]
[WhiteElo "2166"]
[BlackElo "2415"]
[Result "1-0"]
[Round "02"]
[TimeControl "180+2"]
[Date "2023.04.11"]
[WhiteClock "0:00:01"]
[BlackClock "0:00:09"]

1. e4 {[%clk 0:03:00]}  c5 {[%clk 0:02:59]} 2. Nf3 {[%clk 0:03:00]}  Nc6 {[%clk 0:02:59]} 3. d4 {[%clk 0:03:01]}  cxd4 {[%clk 0:02:59]} 4. Nxd4 {[%clk 0:03:01]}  Nf6 {[%clk 0:02:58]} 5. Nc3 {[%clk 0:03:01]}  e5 {[%clk 0:02:59]} 6. Ndb5 {[%clk 0:03:02]}  d6 {[%clk 0:02:59]} 7. Bg5 {[%clk 0:03:02]}  a6 {[%clk 0:02:59]} 8. Bxf6 {[%clk 0:03:02]}  gxf6 {[%clk 0:02:59]} 9. Na3 {[%clk 0:03:03]}  b5 {[%clk 0:02:58]} 10. Nd5 {[%clk 0:03:03]}  f5 {[%clk 0:02:58]} 11. g3 {[%clk 0:03:03]}  fxe4 {[%clk 0:02:50]} 12. Bg2 {[%clk 0:03:03]}  Bf5 {[%clk 0:02:48]} 13. f3 {[%clk 0:02:56]}  exf3 {[%clk 0:02:41]} 14. Qxf3 {[%clk 0:02:55]}  Nd4 {[%clk 0:02:36]} 15. Nf6+ {[%clk 0:02:27]}  Qxf6 {[%clk 0:02:04]} 16. Qxa8+ {[%clk 0:02:26]}  Qd8 {[%clk 0:02:04]} 17. Qxd8+ {[%clk 0:02:17]}  Kxd8 {[%clk 0:02:05]} 18. c3 {[%clk 0:02:17]}  Ne6 {[%clk 0:02:05]} 19. Rf1 {[%clk 0:01:43]}  Bg6 {[%clk 0:02:03]} 20. O-O-O {[%clk 0:01:43]}  Bh6+ {[%clk 0:02:01]} 21. Rd2 {[%clk 0:01:43]}  Nc5 {[%clk 0:01:59]} 22. Kd1 {[%clk 0:01:36]}  Bxd2 {[%clk 0:01:58]} 23. Kxd2 {[%clk 0:01:37]}  Ke7 {[%clk 0:01:57]} 24. Nc2 {[%clk 0:01:29]}  Bxc2 {[%clk 0:01:56]} 25. Kxc2 {[%clk 0:01:29]}  h5 {[%clk 0:01:57]} 26. Bd5 {[%clk 0:01:25]}  f6 {[%clk 0:01:56]} 27. b4 {[%clk 0:01:21]}  Nd7 {[%clk 0:01:51]} 28. Bb7 {[%clk 0:01:18]}  h4 {[%clk 0:01:51]} 29. Bxa6 {[%clk 0:01:13]}  hxg3 {[%clk 0:01:50]} 30. hxg3 {[%clk 0:01:12]}  Rb8 {[%clk 0:01:50]} 31. Kb3 {[%clk 0:00:55]}  d5 {[%clk 0:01:45]} 32. a4 {[%clk 0:00:41]}  bxa4+ {[%clk 0:01:44]} 33. Kxa4 {[%clk 0:00:42]}  Ra8 {[%clk 0:01:45]} 34. b5 {[%clk 0:00:42]}  Nb6+ {[%clk 0:01:44]} 35. Kb4 {[%clk 0:00:40]}  Ke6 {[%clk 0:01:35]} 36. Kc5 {[%clk 0:00:33]}  Rb8 {[%clk 0:01:34]} 37. Kc6 {[%clk 0:00:26]}  Na4 {[%clk 0:01:28]} 38. Rc1 {[%clk 0:00:20]}  Rb6+ {[%clk 0:01:26]} 39. Kc7 {[%clk 0:00:20]}  Rd6 {[%clk 0:01:23]} 40. Bc8+ {[%clk 0:00:18]}  Ke7 {[%clk 0:01:23]} 41. Ra1 {[%clk 0:00:15]}  Nxc3 {[%clk 0:01:17]} 42. b6 {[%clk 0:00:16]}  Nb5+ {[%clk 0:01:18]} 43. Kb7 {[%clk 0:00:15]}  e4 {[%clk 0:01:12]} 44. Ra5 {[%clk 0:00:15]}  Nc3 {[%clk 0:01:07]} 45. Kc7 {[%clk 0:00:12]}  e3 {[%clk 0:01:02]} 46. b7 {[%clk 0:00:11]}  e2 {[%clk 0:01:03]} 47. b8=Q {[%clk 0:00:06]}  e1=Q {[%clk 0:01:03]} 48. Qb4 {[%clk 0:00:05]}  Qe5 {[%clk 0:00:57]} 49. Kb7 {[%clk 0:00:03]}  Kf7 {[%clk 0:00:55]} 50. Ka8 {[%clk 0:00:02]}  Ne4 {[%clk 0:00:46]} 51. Ra7+ {[%clk 0:00:02]}  Kg6 {[%clk 0:00:47]} 52. Qb7 {[%clk 0:00:01]}  Ng5 {[%clk 0:00:07]} 53. Qg7+ {[%clk 0:00:01]}  Kh5 {[%clk 0:00:08]} 54. Qh8+ {[%clk 0:00:01]}  Kg6 {[%clk 0:00:08]} 55. Qg8+ {[%clk 0:00:01]}  Kh5 {[%clk 0:00:08]} 56. Qh8+ {[%clk 0:00:02]}  Kg6 {[%clk 0:00:09]} 57. Rg7# {[%clk 0:00:01]} 1-0


[Site "https://www.chess.com"]